{"text_format":"3","workbook":"xlsx","n_sheets":11,"sheets":["Deckblatt","Vertretungsberechtigung","Sachausgaben","Angaben zur Fachkraft (1)","Angaben zur Fachkraft (2)","Angaben zur Fachkraft (3)","Angaben zur Fachkraft (4)","Angaben zur Fachkraft (5)","Angaben zur Fachkraft (6)","Personalausgaben","Ausgaben-u.Finanzierungsplan"],"not_rendered":{"defined_names":10,"comments":2},"read":"whole","date_system":"1900"}

{"sheet":"Deckblatt","index":0,"n_rows":55,"n_cols":20,"rows_kept":55,"merged":[[2,0,2,11],[2,13,3,20],[3,0,4,11],[5,0,5,11],[5,13,6,20],[6,0,6,11],[16,0,16,20],[17,2,17,19],[17,23,17,43],[18,0,18,20],[20,9,20,13],[20,15,20,19],[23,3,23,6],[23,9,23,12],[23,15,23,18],[23,21,23,24],[25,7,27,12],[25,13,27,20],[28,0,28,11],[28,13,28,20],[29,0,29,11],[29,13,29,20],[30,0,30,11],[30,13,30,20],[31,0,31,11],[31,13,31,20],[32,0,32,11],[32,13,32,20],[33,0,33,11],[33,13,33,20],[34,0,34,11],[34,13,34,20],[39,0,39,3],[39,4,39,6],[39,7,39,10],[39,11,39,13],[39,14,39,16],[39,17,39,20],[52,0,52,5],[52,15,52,20],[54,0,54,20]]}
["Landeshauptstadt Dresden - Jugendamt"]
["Antragsteller:",{"$nulls":12},"Aktenzeichen (sofern bekannt):"]
[]
[]
[{"$nulls":13},"Maßnahmebezeichnung:"]
[]
[]
[]
["Antragsbehörde:                                                                                                                                                                                                                                                                                    ",{"$nulls":11},"Sitz Zuschusswesen:",{"$nulls":4},"Sitz Jugendgerichtshilfe:"]
["Landeshauptstadt Dresden",{"$nulls":11},"Dr.-Külz-Ring 19, 01067 Dresden",{"$nulls":4},"Königsbrücker Straße 8"]
["Jugendamt",{"$nulls":11},"III. Etage, Zi. 181",{"$nulls":4},"01099 Dresden"]
["Abt. Kinder-, Jugend- u. Familienförderung",{"$nulls":11},"Ansprechpartner(in):",{"$nulls":4},"Ansprechpartner:"]
["Postfach 12 00 20",{"$nulls":11},"Frau Seidel",{"$nulls":4},"Herr Mollik"]
["01001 Dresden ",{"$nulls":11},"Tel.: 0351/488-4754; Fax: -4643",{"$nulls":4},"Tel.: 0351/488-7511; Fax: -7513"]
[{"$nulls":12},"Email: JSeidel1@dresden.de",{"$nulls":4},"Email: rmollik@dresden.de"]
[]
["Antrag auf Gewährung einer Zuwendung "]
[null,null,"Ambulante Maßnahmen der Jugendhilfe im Strafverfahren im Auftrag \nder Jugendgerichtshilfe gemäß § 10 Jugendgerichtsgesetz\n"]
[]
[]
[{"$nulls":8},"Antragsjahr",{"$nulls":6},"Antragsschluss: 31.8. des Vorjahres"]
[]
[{"$nulls":3},"Sachausgaben",{"$nulls":5},"Personalausgaben",{"$nulls":5},"Antrag gesamt"]
[{"$nulls":3},{"$f":"'Ausgaben-u.Finanzierungsplan'!I9","v":0},{"$nulls":3},"EUR",null,{"$f":"'Ausgaben-u.Finanzierungsplan'!E9","v":0},{"$nulls":3},"EUR",null,{"$f":"D24+J24","v":0},{"$nulls":3},"EUR"]
[]
[{"$nulls":7},"dem Antrag beigefügt\n(wenn ja, ankreuzen)",{"$nulls":5},"liegt dem Jugendamt bereits vor \n-> Datum der aktuellen Fassung hier eintragen\n(Unterlagen müssen nicht beigefügt werden):"]
["Erforderliche Unterlagen"]
[]
["Satzung/(Jugend)Ordnung/Gesellschaftervertrag"]
["aktueller Vereins-/Handelsregisterauszug"]
["Nachweis der Gemeinnützigkeit (Steuerfreistellungsbescheid d. Finanzamtes)"]
["Anerkennung nach § 75 SGB VIII (sofern Förderung auf Dauer angelegt oder Träger anderer Gebietskörperschaft angehört)"]
["Miet- und Pachtverträge"]
["Konzeption/Projektbeschreibung gültig mindestens für das Antragsjahr \n(inkl. Qualitätsentwicklungsbeschreibung)"]
["bei Personalausgabenantrag: Stellenbeschreibung, Qualifikationsnachweise"]
[]
["Ansprechperson(en)"]
["für Förderung/Finanzen",{"$nulls":10},"für die sozialpädagogische/fachliche Arbeit im Angebot"]
["Name",{"$nulls":3},"Tel.-/Fax-Nr.",null,null,"Email-Adresse",{"$nulls":3},"Name",null,null,"Tel.-/Fax-Nr.",null,null,"Email-Adresse"]
[]
[]
["Erklärung "]
["Der  Antragsteller erklärt, dass die Angaben im Antrag (Deckblatt einschließlich allen Folgeseiten) vollständig und richtig sind; "]
["die Grundsätze einer sparsamen und wirtschaftlichen Haushaltsplanung eingehalten wurden; die Gewähr der zweckentsprechenden "]
["und wirtschaftlichen Verwendung der Mittel gegeben ist; die fachlichen Voraussetzungen für die geplante Maßnahme erfüllt werden;"]
["gemeinnützige Ziele verfolgt werden; die Gewähr für eine den Zielen des Grundgesetzes förderliche Arbeit gegeben ist."]
[]
["Belehrung"]
["Der Antragsteller wird belehrt, dass die Ausgaben - sofern eine  Vorsteuerabzugsberechtigung vorliegt - ohne Umsatzsteuer "]
["anzugeben sind und Änderungen, die Auswirkungen auf den Antrag haben, unverzüglich und unaufgefordert anzuzeigen sind."]
["Es liegt eine Vorsteuerabzugsberechtigung vor (ankreuzen): "]
[]
[]
["Ort, Datum",{"$nulls":6},"rechtsverbindliche Unterschrift(en)",{"$nulls":7},"in PC-/Blockschrift"]
["Anlagen: Vertretungsberechtigung, Untersetzung der Sach- und Personalausgaben, Angaben zur Fachkraft, Ausgaben- und Finanzierungsplan"]

{"sheet":"Vertretungsberechtigung","index":1,"n_rows":50,"n_cols":15,"rows_kept":50,"merged":[[0,14,0,16],[2,8,2,16],[5,0,5,16],[7,0,7,4],[10,8,10,16],[12,0,12,16],[13,0,15,4],[13,5,13,16],[14,5,14,16],[17,0,17,4],[17,5,17,16],[18,0,19,4],[18,5,18,16],[21,0,21,16],[22,0,23,4],[22,5,22,16],[25,0,25,16],[26,0,28,4],[26,5,26,16],[27,5,27,16],[32,1,32,16],[34,1,34,11],[39,1,39,16],[42,14,42,16],[44,0,45,13],[46,0,46,13],[48,0,48,3],[48,13,48,16]]}
["Landeshauptstadt Dresden - Jugendamt",{"$nulls":12},"AZ:",{"$f":"Deckblatt!N3","v":0}]
[]
[{"$nulls":7},"Vertretungsregelung für den Zeitraum:"]
[]
["Träger"]
[]
[]
["O. g. Organisation ist (ankreuzen):"]
[]
["1.1 rechtsfähig",{"$nulls":4},"1.2 nicht rechtsfähig",null,null,"und ggf. Teil der rechtsfähigen Körperschaft:"]
[]
["Vertretungsregelungen"]
["Der Antragsteller wird gemäß Satzung/Ordnung/Gesellschaftervertrag nach innen und außen vertreten durch:"]
["allein:"]
[]
[{"$nulls":5},"Name, Vorname, Funktion         z. B. Erste(r) Vorsitzende(r)"]
[]
["gemeinsam:"]
["(Vertretung durch mindestens zwei Personen gemeinschaftlich u.gleichzeitig)"]
[{"$nulls":5},"Namen, Vornamen, Funktionen z.B. Vorsitzende(r) und stellvertretende(r) Vorsitzende(r)"]
["Geschäftsführer/-in:"]
["Der vertretungsberechtigte Vorstand hat gemäß Satzung/Ordung/Gesellschaftervertrag folgende Person zum/zur Geschäftsführer/-in ernannt (das Ernennungsschreiben ist beizulegen):"]
[]
[{"$nulls":5},"Name, Vorname"]
["Vollmacht/Unterschriftsberechtigung "]
["Der vertretungsberechtigte Vorstand bzw. (die) ernannte Geschäftsführer/-in erteilt folgender/n Person(en) die alleinige oder gemeinsame Vollmacht zur Ausübung diverser Geschäftsgänge:"]
[]
[]
[{"$nulls":5},"Namen, Vornamen"]
["Die Vollmacht umfasst folgende Geschäfts- bzw. Verwaltungshandlungen (ankreuzen und ggf. ergänzen):"]
[" - für alle Angebote"]
[" - für das/die Angebot(e)"]
[]
[]
[null," - Beantragung von Fördermitteln"]
[null," - Einlegen von Rechtsmitteln (Widerspruch, Klage)"]
[null," - Verwendungsnachweis"]
[null," - andere das Verwaltungsverfahren betreffende Verwaltungshandlungen wie…"]
[]
[]
[]
["Mitglieder des Stadtjugendring Dresden e.  V.:"]
["Die Vollmacht zwischen der o. g. Körperschaft und dem Stadtjugendring Dresden e. V. vom "]
[]
["hinsichtlich der Ermächtigung zu allen Verwaltungshandlungen, die Beantragung und Gewährung von Fördermitteln der Landeshauptstadt Dresden betreffend, behält ihre Gültigkeit (ankreuzen)"]
[]
["Die aktuelle Vollmacht ist beigefügt (ankreuzen)"]
[]
[]
["Ort, Datum",{"$nulls":4},"rechtsverbindliche Unterschrift(en)",{"$nulls":7},"in Block-/PC-Schrift"]

{"sheet":"Sachausgaben","index":2,"n_rows":57,"n_cols":17,"rows_kept":57,"merged":[[0,16,0,18],[2,0,2,12],[2,13,2,15],[2,16,2,18],[3,0,13,0],[3,10,3,11],[3,13,3,15],[4,13,4,15],[5,13,5,15],[6,13,6,15],[7,13,7,15],[8,13,8,15],[9,13,9,15],[10,13,10,15],[11,13,11,15],[12,2,12,12],[12,13,13,15],[12,16,12,18],[13,1,13,12],[13,16,13,18],[14,0,22,0],[14,2,14,12],[14,13,15,15],[15,1,15,12],[16,2,16,12],[16,13,17,15],[17,1,17,12],[18,1,18,12],[18,13,18,15],[19,1,19,12],[19,13,19,15],[20,1,20,12],[20,13,20,15],[21,1,21,12],[21,13,21,15],[21,16,21,18],[22,1,22,12],[22,13,22,15],[22,16,22,18],[23,0,34,0],[23,2,23,12],[23,13,23,15],[23,16,23,18],[24,2,24,12],[24,13,25,15],[25,1,25,12],[26,2,26,12],[26,13,26,15],[26,16,26,18],[27,2,27,12],[27,13,27,15],[28,2,28,12],[28,13,29,15],[29,1,29,12],[30,1,30,12],[30,13,30,15],[31,1,31,12],[31,13,31,15],[32,1,32,12],[32,13,32,15],[33,1,33,12],[33,13,33,15],[33,16,33,18],[34,1,34,12],[34,13,34,15],[34,16,34,18],[35,13,35,15],[35,16,35,18],[36,0,36,18]]}
["Landeshauptstadt Dresden - Jugendamt",{"$nulls":9},"Fördermittelantrag",{"$f":"Deckblatt!J21","v":0},{"$nulls":3},"Az:",{"$f":"Deckblatt!N3","v":0}]
[]
["Sachausgaben",{"$nulls":12}," in EUR"]
["1. Gebäude- / Bewirtschaftungsausgaben","1.1","Miete",null,"für die Maßnahme genutzte Fläche",{"$nulls":7},"m²"]
[{"$nulls":4},"Kaltmiete *"]
[{"$nulls":4},"Betriebskosten"]
[null,"1.2","Weitere Betriebskosten einschl. Medien"]
[null,"1.3","Gebäudepacht/Erbbauzins *"]
[null,"1.4","Reinigungskosten/Hausverbrauchsmaterial"]
[null,"1.5","Erhaltungsaufwand/Reparaturkosten bewegliche Sachen"]
[null,"1.6","Werterhaltung/Reparaturkosten für Räume/Grundstück"]
[null,"1.7","Gebühren/Beiträge/Steuern/Versicherungen Gebäude/Inventar"]
[null,"1.8","weitere Ausgaben für Gebäude und Bewirtschaftung (benennen):",{"$nulls":13},"Summe 1."]
[{"$nulls":16},{"$f":"SUM(N5:P14)","v":0}]
["2. Ausgaben im Rahmen der sozialpädagogischen Arbeit","2.1","Verbrauchsmaterialien u. bewegliche Sachen für die inhaltliche Arbeit (BS)\nBS mit einem Anschaffungswert über 410 EUR brutto sind hier zu benennen:"]
[]
[null,"2.2","Weitere Ausgaben im Rahmen der inhaltlichen Arbeit (sind zu benennen):"]
[]
[]
[]
[]
[{"$nulls":16},"Summe 2."]
[{"$nulls":16},{"$f":"SUM(N15:P23)","v":0}]
["3. weitere Sachausgaben","3.1","Telekommunikation, Internetnutzung"]
[null,"3.2","Geringwertige Wirtschaftsgüter und Ausstattungsgegenstände (BS)\nBS mit einem Anschaffungswert über 410 EUR brutto sind hier zu benennen:"]
[]
[null,"3.3","Reise-, Fahrt-, Fort- u. Weiterbildungskosten einschl. Fachtagungen/Super-\nvision für haupt-, neben- und ehrenamtliche Mitarbeiter/-innen"]
[null,"3.4","Verwaltungskosten (Büromaterial, Porto, öff. Bekanntmach., Leasing/Wartung Bürotechnik, Buchhaltung, Gehaltsabrechnung)"]
[null,"3.5","Weitere Ausgaben (sind zu benennen)"]
[]
[]
[]
[]
[{"$nulls":16},"Summe 3."]
[{"$nulls":16},{"$f":"SUM(N24:P35)","v":0}]
[{"$nulls":12},"Sachausgaben gesamt",{"$f":"SUM(N5:P35)","v":0}]
["* Verträge sind, sofern im Jugendamt noch nicht vorliegend, mit dem Antrag einzureichen"]
[]
[]
["Finanzierungsplan"]
["beantragte Zuwendung Jugendamt"]
["weitere öffentliche Mittel (EU/Bund/Land/AA/Kommune)"]
["Art: "]
[]
["sonstige Finanzierungsquellen"]
["Art: "]
[]
["Teilnehmerbeiträge"]
["weitere Eigenmittel"]
["gesamt",{"$nulls":12},{"$f":"SUM(N41:P49)","v":{"v":0,"d":"0.00"}}]
[]
["*1 Abgrenzung zu beweglichen Sachen des Anlagevermögens - vergleiche Formblatt BS-Antrag "]
[]
[]
[]
[]
["Ort, Datum",{"$nulls":5},"rechtsverbindliche Unterschrift(en)"]

{"sheet":"Angaben zur Fachkraft (1)","index":3,"n_rows":66,"n_cols":22,"rows_kept":66,"merged":[[0,13,0,15],[6,0,6,4],[6,6,6,8],[6,10,6,14],[9,5,9,6],[9,7,9,9],[10,7,11,14],[13,0,14,8],[16,0,17,8],[19,0,20,8],[22,0,22,14],[25,2,25,3],[25,6,25,8],[25,9,25,14],[28,8,29,13],[31,1,31,14],[32,0,32,10],[32,13,34,14],[33,12,34,12],[36,0,37,2],[36,3,36,4],[36,5,36,6],[36,7,36,8],[36,9,36,10],[36,11,36,12],[36,13,36,14],[41,0,41,2],[41,3,41,5],[41,11,41,13],[44,8,44,9],[47,0,47,2],[47,3,47,4],[47,5,47,6],[47,8,47,10],[47,11,47,12],[47,13,47,14],[47,16,47,18],[47,19,47,20],[47,21,47,22],[50,0,50,2],[50,3,50,4],[50,5,50,6],[50,8,50,10],[50,11,50,12],[50,13,50,14],[50,16,50,18],[50,19,50,20],[50,21,50,22],[53,0,53,2],[53,3,53,4],[53,5,53,6],[53,8,53,10],[53,11,53,12],[53,13,53,14],[55,4,56,7],[57,0,57,3],[57,4,57,6],[57,7,58,7],[57,8,58,9],[57,11,57,12],[57,13,58,14],[59,8,59,9],[59,13,59,14],[61,0,61,3],[61,4,62,8],[61,9,66,11],[61,12,66,14],[63,0,63,3],[63,4,64,8],[64,0,64,3],[65,4,66,8]]}
["Landeshauptstadt Dresden - Jugendamt",{"$nulls":7},"Fördermittelantrag",{"$f":"Deckblatt!J21","v":0},null,null,"Az:",{"$f":"Deckblatt!N3","v":0}]
[]
[{"$nulls":7},"Angaben zur beantragten Fachkraft",{"$nulls":7},"Blatt 1"]
["Zutreffendes ankreuzen!"]
[]
["Name, Vorname",{"$nulls":5},"Geburtsdatum",{"$nulls":3},"Stellen-/ Tätigkeitsbezeichnung"]
[]
[]
["Stellenbeschreibung",{"$nulls":3},"dem Antrag beigefügt"]
[null,"liegt dem Jugendamt vor, dann",{"$nulls":3},"Stellenbeschrei- bung vom:",{"$nulls":4},"behält ihre Gültigkeit:"]
[{"$nulls":7},"Ist die im Jugendamt vorliegende Stellenbeschreibung nicht mehr gültig, muss eine neue eingereicht werden."]
["Ausbildung"]
["Abschluss:"]
[{"$nulls":9},"Kopie des Abschlusses"]
[{"$nulls":10},"beigefügt",null,"liegt dem Jugendamt vor"]
["berufsbegleitende Ausbildung:"]
[{"$nulls":9},"Immatrikulationsbescheinigung"]
[{"$nulls":10},"beigefügt",null,"liegt dem Jugendamt vor"]
["Zusatzqualifikationen:"]
[{"$nulls":9},"Kopie(n)"]
[{"$nulls":10},"beigefügt",null,"liegt dem Jugendamt vor"]
[]
["Die kopierten Qualifikationsnachweise sind (sofern im Jugendamt noch nicht vorliegend) vom Arbeitgeber mit dem Vermerk \"Das Original hat am ... (Datum) vorgelegen\"  zu versehen. "]
["Vergütung"]
[null,"in Anlehnung an den Tarif öffentlicher Dienst (TVöD bzw. TVÜ-VKA)",{"$nulls":8},"anderer Tarifvertrag (Bezeichnung)"]
["Entgeltgruppe:",{"$nulls":5},"übergeleitete(r)  Beschäftigte(r)"]
[]
["Sozialdaten (nur für \"übergeleitete Beschäftigte\")"]
["Familienstand:",null,null,"ledig","            verheiratet",null," verwitwet",null,"Ehepartner im öffentlichen Dienst  bzw. nach dem Überleitungstarifvertrag des TVöD vergütet:"]
["Stichtag 30.09.2005",null,null,"geschieden"]
[]
["Kinder: ","(Angaben sind für alle übergeleitete Beschäftigte zu leisten; es sind nur die Kinder zu berücksichtigen, die bis zum 31.12.2005 geboren wurden)"]
["1. Anzahl der Kinder, für welche der/die Beschäftigte im Antragszeitraum Kindergeld erhält:"]
["                       "]
[]
[]
["Geb.daten der zu berücksichtigenden Kinder:"]
[{"$nulls":3},"1. Kind",null,"2. Kind",null,"3. Kind",null,"4. Kind",null,"5. Kind",null,"6. Kind"]
[]
["Beschäftigungszeit"]
[]
["in der o. g. Tätigkeit beschäftigt seit: ",{"$nulls":5},"Aufnahme der Tätigkeit im Angebot am:"]
[]
["Arbeitsumfang ",{"$nulls":7},"Jahresdurchschnitt:",{"$nulls":3},"in VK:"]
["Regelmäßige wöchentliche Arbeitszeit:",{"$nulls":7},{"$f":"ROUND((F48/12*D48)+(N48/12*L48)+(F51/12*D51)+(N51/12*L51)+(F54/12*D54)+(N54/12*L54),2)","v":0},null,"h/Woche",null,{"$f":"ROUND(I45/40,2)","v":0},{"$nulls":3},"Bsp.:"]
[]
["Datum (von - bis)",null,null," in Monaten",null,"Std./Woche",null,null,"Datum (von - bis)",null,null," in Monaten",null,"Std./Woche",null,null,"Datum (von - bis)",null,null," in Monaten",null,"Std./Woche"]
[{"$nulls":16},"01.01. - 31.03.",null,null,{"v":3,"d":"3.00"},null,"20"]
[]
["Datum (von - bis)",null,null," in Monaten",null,"Std./Woche",null,null,"Datum (von - bis)",null,null," in Monaten",null,"Std./Woche",null,null,"Datum (von - bis)",null,null," in Monaten",null,"Std./Woche"]
[{"$nulls":16},"01.04. - 15.10.",null,null,{"v":6.5,"d":"6.50"},null,"40"]
[]
["Datum (von - bis)",null,null," in Monaten",null,"Std./Woche",null,null,"Datum (von - bis)",null,null," in Monaten",null,"Std./Woche"]
[]
[]
["Lohnnebenkosten etc.",{"$nulls":3},"geringfügig beschäftigt (Minijob)"]
[]
["AG-Anteile SV in %",{"$nulls":3},"Umlage-Verfahren der Krankenkassen in %",null,null,"S","AG-Anteile ges. in EUR",null,null,"VWL in EUR",null,"bAV/Jahr                 in EUR"]
["PV","RV","AV","KV","U1","U2","IU",{"$nulls":4},"im Monat","im Jahr"]
[{"$nulls":7},{"$f":"SUM(A60:G60)","v":0}]
[]
["PV: Pflegeversicherung                                ",{"$nulls":3},"U1: Lohnfortzahl.verfahren der Krankenkassen im Krankheitsfall",{"$nulls":4},"VWL: Vermögens- wirksame Leistungen für 1,0 VK > max. 6,65 € pro Monat",null,null,"bAV: die Arbeitgeberaufwendungen für eine betriebl. Altersvorsorge sind max. in Höhe der städtischen Altersvorsorge (ZVK) zuwendungsfähig. "]
["RV: Rentenversicherung"]
["AV: Arbeitslosenversicherung                        ",{"$nulls":3},"U2: Lohnfortzahlungsverfahren der Krankenkassen bei Mutterschaft"]
["KV: Krankenversicherung"]
[{"$nulls":4},"IU: Insolvenzgeldumlage an die KK (ausgenommen Körperschaften des öff. Rechts)"]

{"sheet":"Angaben zur Fachkraft (2)","index":4,"n_rows":66,"n_cols":22,"rows_kept":66,"merged":[[0,13,0,15],[6,0,6,4],[6,6,6,8],[6,10,6,14],[9,5,9,6],[9,7,9,9],[10,7,11,14],[13,0,14,8],[16,0,17,8],[19,0,20,8],[22,0,22,14],[25,2,25,3],[25,6,25,8],[25,9,25,14],[28,8,29,13],[31,1,31,14],[32,0,32,10],[32,13,34,14],[33,12,34,12],[36,0,37,2],[36,3,36,4],[36,5,36,6],[36,7,36,8],[36,9,36,10],[36,11,36,12],[36,13,36,14],[41,0,41,2],[41,3,41,5],[41,11,41,13],[44,8,44,9],[47,0,47,2],[47,3,47,4],[47,5,47,6],[47,8,47,10],[47,11,47,12],[47,13,47,14],[47,16,47,18],[47,19,47,20],[47,21,47,22],[50,0,50,2],[50,3,50,4],[50,5,50,6],[50,8,50,10],[50,11,50,12],[50,13,50,14],[50,16,50,18],[50,19,50,20],[50,21,50,22],[53,0,53,2],[53,3,53,4],[53,5,53,6],[53,8,53,10],[53,11,53,12],[53,13,53,14],[55,4,56,7],[57,0,57,3],[57,4,57,6],[57,7,58,7],[57,8,58,9],[57,11,57,12],[57,13,58,14],[59,8,59,9],[59,13,59,14],[61,0,61,3],[61,4,62,8],[61,9,66,11],[61,12,66,14],[63,0,63,3],[63,4,64,8],[64,0,64,3],[65,4,66,8]]}
["Landeshauptstadt Dresden - Jugendamt",{"$nulls":7},"Fördermittelantrag",{"$f":"Deckblatt!J21","v":0},null,null,"Az:",{"$f":"Deckblatt!N3","v":0}]
[]
[{"$nulls":7},"Angaben zur beantragten Fachkraft",{"$nulls":7},"Blatt 2"]
["Zutreffendes ankreuzen!"]
[]
["Name, Vorname",{"$nulls":5},"Geburtsdatum",{"$nulls":3},"Stellen-/ Tätigkeitsbezeichnung"]
[]
[]
["Stellenbeschreibung",{"$nulls":3},"dem Antrag beigefügt"]
[null,"liegt dem Jugendamt vor, dann",{"$nulls":3},"Stellenbeschrei- bung vom:",{"$nulls":4},"behält ihre Gültigkeit:"]
[{"$nulls":7},"Ist die im Jugendamt vorliegende Stellenbeschreibung nicht mehr gültig, muss eine neue eingereicht werden."]
["Ausbildung"]
["Abschluss:"]
[{"$nulls":9},"Kopie des Abschlusses"]
[{"$nulls":10},"beigefügt",null,"liegt dem Jugendamt vor"]
["berufsbegleitende Ausbildung:"]
[{"$nulls":9},"Immatrikulationsbescheinigung"]
[{"$nulls":10},"beigefügt",null,"liegt dem Jugendamt vor"]
["Zusatzqualifikationen:"]
[{"$nulls":9},"Kopie(n)"]
[{"$nulls":10},"beigefügt",null,"liegt dem Jugendamt vor"]
[]
["Die kopierten Qualifikationsnachweise sind (sofern im Jugendamt noch nicht vorliegend) vom Arbeitgeber mit dem Vermerk \"Das Original hat am ... (Datum) vorgelegen\"  zu versehen. "]
["Vergütung"]
[null,"in Anlehnung an den Tarif öffentlicher Dienst (TVöD bzw. TVÜ-VKA)",{"$nulls":8},"anderer Tarifvertrag (Bezeichnung)"]
["Entgeltgruppe:",{"$nulls":5},"übergeleitete(r)  Beschäftigte(r)"]
[]
["Sozialdaten (nur für \"übergeleitete Beschäftigte\")"]
["Familienstand:",null,null,"ledig","            verheiratet",null," verwitwet",null,"Ehepartner im öffentlichen Dienst  bzw. nach dem Überleitungstarifvertrag des TVöD vergütet:"]
["Stichtag 30.09.2005",null,null,"geschieden"]
[]
["Kinder: ","(Angaben sind für alle übergeleitete Beschäftigte zu leisten; es sind nur die Kinder zu berücksichtigen, die bis zum 31.12.2005 geboren wurden)"]
["1. Anzahl der Kinder, für welche der/die Beschäftigte im Antragszeitraum Kindergeld erhält:"]
["                       "]
[]
[]
["Geb.daten der zu berücksichtigenden Kinder:"]
[{"$nulls":3},"1. Kind",null,"2. Kind",null,"3. Kind",null,"4. Kind",null,"5. Kind",null,"6. Kind"]
[]
["Beschäftigungszeit"]
[]
["in der o. g. Tätigkeit beschäftigt seit: ",{"$nulls":5},"Aufnahme der Tätigkeit im Angebot am:"]
[]
["Arbeitsumfang ",{"$nulls":7},"Jahresdurchschnitt:",{"$nulls":3},"in VK:"]
["Regelmäßige wöchentliche Arbeitszeit:",{"$nulls":7},{"$f":"ROUND((F48/12*D48)+(N48/12*L48)+(F51/12*D51)+(N51/12*L51)+(F54/12*D54)+(N54/12*L54),2)","v":0},null,"h/Woche",null,{"$f":"ROUND(I45/40,2)","v":0},{"$nulls":3},"Bsp.:"]
[]
["Datum (von - bis)",null,null," in Monaten",null,"Std./Woche",null,null,"Datum (von - bis)",null,null," in Monaten",null,"Std./Woche",null,null,"Datum (von - bis)",null,null," in Monaten",null,"Std./Woche"]
[{"$nulls":16},"01.01. - 31.03.",null,null,{"v":3,"d":"3.00"},null,"20"]
[]
["Datum (von - bis)",null,null," in Monaten",null,"Std./Woche",null,null,"Datum (von - bis)",null,null," in Monaten",null,"Std./Woche",null,null,"Datum (von - bis)",null,null," in Monaten",null,"Std./Woche"]
[{"$nulls":16},"01.04. - 15.10.",null,null,{"v":6.5,"d":"6.50"},null,"40"]
[]
["Datum (von - bis)",null,null," in Monaten",null,"Std./Woche",null,null,"Datum (von - bis)",null,null," in Monaten",null,"Std./Woche"]
[]
[]
["Lohnnebenkosten etc.",{"$nulls":3},"geringfügig beschäftigt (Minijob)"]
[]
["AG-Anteile SV in %",{"$nulls":3},"Umlage-Verfahren der Krankenkassen in %",null,null,"S","AG-Anteile ges. in EUR",null,null,"VWL in EUR",null,"bAV/Jahr                 in EUR"]
["PV","RV","AV","KV","U1","U2","IU",{"$nulls":4},"im Monat","im Jahr"]
[{"$nulls":7},{"$f":"SUM(A60:G60)","v":0}]
[]
["PV: Pflegeversicherung                                ",{"$nulls":3},"U1: Lohnfortzahl.verfahren der Krankenkassen im Krankheitsfall",{"$nulls":4},"VWL: Vermögens- wirksame Leistungen für 1,0 VK > max. 6,65 € pro Monat",null,null,"bAV: die Arbeitgeberaufwendungen für eine betriebl. Altersvorsorge sind max. in Höhe der städtischen Altersvorsorge (ZVK) zuwendungsfähig. "]
["RV: Rentenversicherung"]
["AV: Arbeitslosenversicherung                        ",{"$nulls":3},"U2: Lohnfortzahlungsverfahren der Krankenkassen bei Mutterschaft"]
["KV: Krankenversicherung"]
[{"$nulls":4},"IU: Insolvenzgeldumlage an die KK (ausgenommen Körperschaften des öff. Rechts)"]

{"sheet":"Angaben zur Fachkraft (3)","index":5,"n_rows":66,"n_cols":22,"rows_kept":66,"merged":[[0,13,0,15],[6,0,6,4],[6,6,6,8],[6,10,6,14],[9,5,9,6],[9,7,9,9],[10,7,11,14],[13,0,14,8],[16,0,17,8],[19,0,20,8],[22,0,22,14],[25,2,25,3],[25,6,25,8],[25,9,25,14],[28,8,29,13],[31,1,31,14],[32,0,32,10],[32,13,34,14],[33,12,34,12],[36,0,37,2],[36,3,36,4],[36,5,36,6],[36,7,36,8],[36,9,36,10],[36,11,36,12],[36,13,36,14],[41,0,41,2],[41,3,41,5],[41,11,41,13],[44,8,44,9],[47,0,47,2],[47,3,47,4],[47,5,47,6],[47,8,47,10],[47,11,47,12],[47,13,47,14],[47,16,47,18],[47,19,47,20],[47,21,47,22],[50,0,50,2],[50,3,50,4],[50,5,50,6],[50,8,50,10],[50,11,50,12],[50,13,50,14],[50,16,50,18],[50,19,50,20],[50,21,50,22],[53,0,53,2],[53,3,53,4],[53,5,53,6],[53,8,53,10],[53,11,53,12],[53,13,53,14],[55,4,56,7],[57,0,57,3],[57,4,57,6],[57,7,58,7],[57,8,58,9],[57,11,57,12],[57,13,58,14],[59,8,59,9],[59,13,59,14],[61,0,61,3],[61,4,62,8],[61,9,66,11],[61,12,66,14],[63,0,63,3],[63,4,64,8],[64,0,64,3],[65,4,66,8]]}
["Landeshauptstadt Dresden - Jugendamt",{"$nulls":7},"Fördermittelantrag",{"$f":"Deckblatt!J21","v":0},null,null,"Az:",{"$f":"Deckblatt!N3","v":0}]
[]
[{"$nulls":7},"Angaben zur beantragten Fachkraft",{"$nulls":7},"Blatt 3"]
["Zutreffendes ankreuzen!"]
[]
["Name, Vorname",{"$nulls":5},"Geburtsdatum",{"$nulls":3},"Stellen-/ Tätigkeitsbezeichnung"]
[]
[]
["Stellenbeschreibung",{"$nulls":3},"dem Antrag beigefügt"]
[null,"liegt dem Jugendamt vor, dann",{"$nulls":3},"Stellenbeschrei- bung vom:",{"$nulls":4},"behält ihre Gültigkeit:"]
[{"$nulls":7},"Ist die im Jugendamt vorliegende Stellenbeschreibung nicht mehr gültig, muss eine neue eingereicht werden."]
["Ausbildung"]
["Abschluss:"]
[{"$nulls":9},"Kopie des Abschlusses"]
[{"$nulls":10},"beigefügt",null,"liegt dem Jugendamt vor"]
["berufsbegleitende Ausbildung:"]
[{"$nulls":9},"Immatrikulationsbescheinigung"]
[{"$nulls":10},"beigefügt",null,"liegt dem Jugendamt vor"]
["Zusatzqualifikationen:"]
[{"$nulls":9},"Kopie(n)"]
[{"$nulls":10},"beigefügt",null,"liegt dem Jugendamt vor"]
[]
["Die kopierten Qualifikationsnachweise sind (sofern im Jugendamt noch nicht vorliegend) vom Arbeitgeber mit dem Vermerk \"Das Original hat am ... (Datum) vorgelegen\"  zu versehen. "]
["Vergütung"]
[null,"in Anlehnung an den Tarif öffentlicher Dienst (TVöD bzw. TVÜ-VKA)",{"$nulls":8},"anderer Tarifvertrag (Bezeichnung)"]
["Entgeltgruppe:",{"$nulls":5},"übergeleitete(r)  Beschäftigte(r)"]
[]
["Sozialdaten (nur für \"übergeleitete Beschäftigte\")"]
["Familienstand:",null,null,"ledig","            verheiratet",null," verwitwet",null,"Ehepartner im öffentlichen Dienst  bzw. nach dem Überleitungstarifvertrag des TVöD vergütet:"]
["Stichtag 30.09.2005",null,null,"geschieden"]
[]
["Kinder: ","(Angaben sind für alle übergeleitete Beschäftigte zu leisten; es sind nur die Kinder zu berücksichtigen, die bis zum 31.12.2005 geboren wurden)"]
["1. Anzahl der Kinder, für welche der/die Beschäftigte im Antragszeitraum Kindergeld erhält:"]
["                       "]
[]
[]
["Geb.daten der zu berücksichtigenden Kinder:"]
[{"$nulls":3},"1. Kind",null,"2. Kind",null,"3. Kind",null,"4. Kind",null,"5. Kind",null,"6. Kind"]
[]
["Beschäftigungszeit"]
[]
["in der o. g. Tätigkeit beschäftigt seit: ",{"$nulls":5},"Aufnahme der Tätigkeit im Angebot am:"]
[]
["Arbeitsumfang ",{"$nulls":7},"Jahresdurchschnitt:",{"$nulls":3},"in VK:"]
["Regelmäßige wöchentliche Arbeitszeit:",{"$nulls":7},{"$f":"ROUND((F48/12*D48)+(N48/12*L48)+(F51/12*D51)+(N51/12*L51)+(F54/12*D54)+(N54/12*L54),2)","v":0},null,"h/Woche",null,{"$f":"ROUND(I45/40,2)","v":0},{"$nulls":3},"Bsp.:"]
[]
["Datum (von - bis)",null,null," in Monaten",null,"Std./Woche",null,null,"Datum (von - bis)",null,null," in Monaten",null,"Std./Woche",null,null,"Datum (von - bis)",null,null," in Monaten",null,"Std./Woche"]
[{"$nulls":16},"01.01. - 31.03.",null,null,{"v":3,"d":"3.00"},null,"20"]
[]
["Datum (von - bis)",null,null," in Monaten",null,"Std./Woche",null,null,"Datum (von - bis)",null,null," in Monaten",null,"Std./Woche",null,null,"Datum (von - bis)",null,null," in Monaten",null,"Std./Woche"]
[{"$nulls":16},"01.04. - 15.10.",null,null,{"v":6.5,"d":"6.50"},null,"40"]
[]
["Datum (von - bis)",null,null," in Monaten",null,"Std./Woche",null,null,"Datum (von - bis)",null,null," in Monaten",null,"Std./Woche"]
[]
[]
["Lohnnebenkosten etc.",{"$nulls":3},"geringfügig beschäftigt (Minijob)"]
[]
["AG-Anteile SV in %",{"$nulls":3},"Umlage-Verfahren der Krankenkassen in %",null,null,"S","AG-Anteile ges. in EUR",null,null,"VWL in EUR",null,"bAV/Jahr                 in EUR"]
["PV","RV","AV","KV","U1","U2","IU",{"$nulls":4},"im Monat","im Jahr"]
[{"$nulls":7},{"$f":"SUM(A60:G60)","v":0}]
[]
["PV: Pflegeversicherung                                ",{"$nulls":3},"U1: Lohnfortzahl.verfahren der Krankenkassen im Krankheitsfall",{"$nulls":4},"VWL: Vermögens- wirksame Leistungen für 1,0 VK > max. 6,65 € pro Monat",null,null,"bAV: die Arbeitgeberaufwendungen für eine betriebl. Altersvorsorge sind max. in Höhe der städtischen Altersvorsorge (ZVK) zuwendungsfähig. "]
["RV: Rentenversicherung"]
["AV: Arbeitslosenversicherung                        ",{"$nulls":3},"U2: Lohnfortzahlungsverfahren der Krankenkassen bei Mutterschaft"]
["KV: Krankenversicherung"]
[{"$nulls":4},"IU: Insolvenzgeldumlage an die KK (ausgenommen Körperschaften des öff. Rechts)"]

{"sheet":"Angaben zur Fachkraft (4)","index":6,"n_rows":66,"n_cols":22,"rows_kept":66,"merged":[[0,13,0,15],[6,0,6,4],[6,6,6,8],[6,10,6,14],[9,5,9,6],[9,7,9,9],[10,7,11,14],[13,0,14,8],[16,0,17,8],[19,0,20,8],[22,0,22,14],[25,2,25,3],[25,6,25,8],[25,9,25,14],[28,8,29,13],[31,1,31,14],[32,0,32,10],[32,13,34,14],[33,12,34,12],[36,0,37,2],[36,3,36,4],[36,5,36,6],[36,7,36,8],[36,9,36,10],[36,11,36,12],[36,13,36,14],[41,0,41,2],[41,3,41,5],[41,11,41,13],[44,8,44,9],[47,0,47,2],[47,3,47,4],[47,5,47,6],[47,8,47,10],[47,11,47,12],[47,13,47,14],[47,16,47,18],[47,19,47,20],[47,21,47,22],[50,0,50,2],[50,3,50,4],[50,5,50,6],[50,8,50,10],[50,11,50,12],[50,13,50,14],[50,16,50,18],[50,19,50,20],[50,21,50,22],[53,0,53,2],[53,3,53,4],[53,5,53,6],[53,8,53,10],[53,11,53,12],[53,13,53,14],[55,4,56,7],[57,0,57,3],[57,4,57,6],[57,7,58,7],[57,8,58,9],[57,11,57,12],[57,13,58,14],[59,8,59,9],[59,13,59,14],[61,0,61,3],[61,4,62,8],[61,9,66,11],[61,12,66,14],[63,0,63,3],[63,4,64,8],[64,0,64,3],[65,4,66,8]]}
["Landeshauptstadt Dresden - Jugendamt",{"$nulls":7},"Fördermittelantrag",{"$f":"Deckblatt!J21","v":0},null,null,"Az:",{"$f":"Deckblatt!N3","v":0}]
[]
[{"$nulls":7},"Angaben zur beantragten Fachkraft",{"$nulls":7},"Blatt 4"]
["Zutreffendes ankreuzen!"]
[]
["Name, Vorname",{"$nulls":5},"Geburtsdatum",{"$nulls":3},"Stellen-/ Tätigkeitsbezeichnung"]
[]
[]
["Stellenbeschreibung",{"$nulls":3},"dem Antrag beigefügt"]
[null,"liegt dem Jugendamt vor, dann",{"$nulls":3},"Stellenbeschrei- bung vom:",{"$nulls":4},"behält ihre Gültigkeit:"]
[{"$nulls":7},"Ist die im Jugendamt vorliegende Stellenbeschreibung nicht mehr gültig, muss eine neue eingereicht werden."]
["Ausbildung"]
["Abschluss:"]
[{"$nulls":9},"Kopie des Abschlusses"]
[{"$nulls":10},"beigefügt",null,"liegt dem Jugendamt vor"]
["berufsbegleitende Ausbildung:"]
[{"$nulls":9},"Immatrikulationsbescheinigung"]
[{"$nulls":10},"beigefügt",null,"liegt dem Jugendamt vor"]
["Zusatzqualifikationen:"]
[{"$nulls":9},"Kopie(n)"]
[{"$nulls":10},"beigefügt",null,"liegt dem Jugendamt vor"]
[]
["Die kopierten Qualifikationsnachweise sind (sofern im Jugendamt noch nicht vorliegend) vom Arbeitgeber mit dem Vermerk \"Das Original hat am ... (Datum) vorgelegen\"  zu versehen. "]
["Vergütung"]
[null,"in Anlehnung an den Tarif öffentlicher Dienst (TVöD bzw. TVÜ-VKA)",{"$nulls":8},"anderer Tarifvertrag (Bezeichnung)"]
["Entgeltgruppe:",{"$nulls":5},"übergeleitete(r)  Beschäftigte(r)"]
[]
["Sozialdaten (nur für \"übergeleitete Beschäftigte\")"]
["Familienstand:",null,null,"ledig","            verheiratet",null," verwitwet",null,"Ehepartner im öffentlichen Dienst  bzw. nach dem Überleitungstarifvertrag des TVöD vergütet:"]
["Stichtag 30.09.2005",null,null,"geschieden"]
[]
["Kinder: ","(Angaben sind für alle übergeleitete Beschäftigte zu leisten; es sind nur die Kinder zu berücksichtigen, die bis zum 31.12.2005 geboren wurden)"]
["1. Anzahl der Kinder, für welche der/die Beschäftigte im Antragszeitraum Kindergeld erhält:"]
["                       "]
[]
[]
["Geb.daten der zu berücksichtigenden Kinder:"]
[{"$nulls":3},"1. Kind",null,"2. Kind",null,"3. Kind",null,"4. Kind",null,"5. Kind",null,"6. Kind"]
[]
["Beschäftigungszeit"]
[]
["in der o. g. Tätigkeit beschäftigt seit: ",{"$nulls":5},"Aufnahme der Tätigkeit im Angebot am:"]
[]
["Arbeitsumfang ",{"$nulls":7},"Jahresdurchschnitt:",{"$nulls":3},"in VK:"]
["Regelmäßige wöchentliche Arbeitszeit:",{"$nulls":7},{"$f":"ROUND((F48/12*D48)+(N48/12*L48)+(F51/12*D51)+(N51/12*L51)+(F54/12*D54)+(N54/12*L54),2)","v":0},null,"h/Woche",null,{"$f":"ROUND(I45/40,2)","v":0},{"$nulls":3},"Bsp.:"]
[]
["Datum (von - bis)",null,null," in Monaten",null,"Std./Woche",null,null,"Datum (von - bis)",null,null," in Monaten",null,"Std./Woche",null,null,"Datum (von - bis)",null,null," in Monaten",null,"Std./Woche"]
[{"$nulls":16},"01.01. - 31.03.",null,null,{"v":3,"d":"3.00"},null,"20"]
[]
["Datum (von - bis)",null,null," in Monaten",null,"Std./Woche",null,null,"Datum (von - bis)",null,null," in Monaten",null,"Std./Woche",null,null,"Datum (von - bis)",null,null," in Monaten",null,"Std./Woche"]
[{"$nulls":16},"01.04. - 15.10.",null,null,{"v":6.5,"d":"6.50"},null,"40"]
[]
["Datum (von - bis)",null,null," in Monaten",null,"Std./Woche",null,null,"Datum (von - bis)",null,null," in Monaten",null,"Std./Woche"]
[]
[]
["Lohnnebenkosten etc.",{"$nulls":3},"geringfügig beschäftigt (Minijob)"]
[]
["AG-Anteile SV in %",{"$nulls":3},"Umlage-Verfahren der Krankenkassen in %",null,null,"S","AG-Anteile ges. in EUR",null,null,"VWL in EUR",null,"bAV/Jahr                 in EUR"]
["PV","RV","AV","KV","U1","U2","IU",{"$nulls":4},"im Monat","im Jahr"]
[{"$nulls":7},{"$f":"SUM(A60:G60)","v":0}]
[]
["PV: Pflegeversicherung                                ",{"$nulls":3},"U1: Lohnfortzahl.verfahren der Krankenkassen im Krankheitsfall",{"$nulls":4},"VWL: Vermögens- wirksame Leistungen für 1,0 VK > max. 6,65 € pro Monat",null,null,"bAV: die Arbeitgeberaufwendungen für eine betriebl. Altersvorsorge sind max. in Höhe der städtischen Altersvorsorge (ZVK) zuwendungsfähig. "]
["RV: Rentenversicherung"]
["AV: Arbeitslosenversicherung                        ",{"$nulls":3},"U2: Lohnfortzahlungsverfahren der Krankenkassen bei Mutterschaft"]
["KV: Krankenversicherung"]
[{"$nulls":4},"IU: Insolvenzgeldumlage an die KK (ausgenommen Körperschaften des öff. Rechts)"]

{"sheet":"Angaben zur Fachkraft (5)","index":7,"n_rows":66,"n_cols":22,"rows_kept":66,"merged":[[0,13,0,15],[6,0,6,4],[6,6,6,8],[6,10,6,14],[9,5,9,6],[9,7,9,9],[10,7,11,14],[13,0,14,8],[16,0,17,8],[19,0,20,8],[22,0,22,14],[25,2,25,3],[25,6,25,8],[25,9,25,14],[28,8,29,13],[31,1,31,14],[32,0,32,10],[32,13,34,14],[33,12,34,12],[36,0,37,2],[36,3,36,4],[36,5,36,6],[36,7,36,8],[36,9,36,10],[36,11,36,12],[36,13,36,14],[41,0,41,2],[41,3,41,5],[41,11,41,13],[44,8,44,9],[47,0,47,2],[47,3,47,4],[47,5,47,6],[47,8,47,10],[47,11,47,12],[47,13,47,14],[47,16,47,18],[47,19,47,20],[47,21,47,22],[50,0,50,2],[50,3,50,4],[50,5,50,6],[50,8,50,10],[50,11,50,12],[50,13,50,14],[50,16,50,18],[50,19,50,20],[50,21,50,22],[53,0,53,2],[53,3,53,4],[53,5,53,6],[53,8,53,10],[53,11,53,12],[53,13,53,14],[55,4,56,7],[57,0,57,3],[57,4,57,6],[57,7,58,7],[57,8,58,9],[57,11,57,12],[57,13,58,14],[59,8,59,9],[59,13,59,14],[61,0,61,3],[61,4,62,8],[61,9,66,11],[61,12,66,14],[63,0,63,3],[63,4,64,8],[64,0,64,3],[65,4,66,8]]}
["Landeshauptstadt Dresden - Jugendamt",{"$nulls":7},"Fördermittelantrag",{"$f":"Deckblatt!J21","v":0},null,null,"Az:",{"$f":"Deckblatt!N3","v":0}]
[]
[{"$nulls":7},"Angaben zur beantragten Fachkraft",{"$nulls":7},"Blatt 5"]
["Zutreffendes ankreuzen!"]
[]
["Name, Vorname",{"$nulls":5},"Geburtsdatum",{"$nulls":3},"Stellen-/ Tätigkeitsbezeichnung"]
[]
[]
["Stellenbeschreibung",{"$nulls":3},"dem Antrag beigefügt"]
[null,"liegt dem Jugendamt vor, dann",{"$nulls":3},"Stellenbeschrei- bung vom:",{"$nulls":4},"behält ihre Gültigkeit:"]
[{"$nulls":7},"Ist die im Jugendamt vorliegende Stellenbeschreibung nicht mehr gültig, muss eine neue eingereicht werden."]
["Ausbildung"]
["Abschluss:"]
[{"$nulls":9},"Kopie des Abschlusses"]
[{"$nulls":10},"beigefügt",null,"liegt dem Jugendamt vor"]
["berufsbegleitende Ausbildung:"]
[{"$nulls":9},"Immatrikulationsbescheinigung"]
[{"$nulls":10},"beigefügt",null,"liegt dem Jugendamt vor"]
["Zusatzqualifikationen:"]
[{"$nulls":9},"Kopie(n)"]
[{"$nulls":10},"beigefügt",null,"liegt dem Jugendamt vor"]
[]
["Die kopierten Qualifikationsnachweise sind (sofern im Jugendamt noch nicht vorliegend) vom Arbeitgeber mit dem Vermerk \"Das Original hat am ... (Datum) vorgelegen\"  zu versehen. "]
["Vergütung"]
[null,"in Anlehnung an den Tarif öffentlicher Dienst (TVöD bzw. TVÜ-VKA)",{"$nulls":8},"anderer Tarifvertrag (Bezeichnung)"]
["Entgeltgruppe:",{"$nulls":5},"übergeleitete(r)  Beschäftigte(r)"]
[]
["Sozialdaten (nur für \"übergeleitete Beschäftigte\")"]
["Familienstand:",null,null,"ledig","            verheiratet",null," verwitwet",null,"Ehepartner im öffentlichen Dienst  bzw. nach dem Überleitungstarifvertrag des TVöD vergütet:"]
["Stichtag 30.09.2005",null,null,"geschieden"]
[]
["Kinder: ","(Angaben sind für alle übergeleitete Beschäftigte zu leisten; es sind nur die Kinder zu berücksichtigen, die bis zum 31.12.2005 geboren wurden)"]
["1. Anzahl der Kinder, für welche der/die Beschäftigte im Antragszeitraum Kindergeld erhält:"]
["                       "]
[]
[]
["Geb.daten der zu berücksichtigenden Kinder:"]
[{"$nulls":3},"1. Kind",null,"2. Kind",null,"3. Kind",null,"4. Kind",null,"5. Kind",null,"6. Kind"]
[]
["Beschäftigungszeit"]
[]
["in der o. g. Tätigkeit beschäftigt seit: ",{"$nulls":5},"Aufnahme der Tätigkeit im Angebot am:"]
[]
["Arbeitsumfang ",{"$nulls":7},"Jahresdurchschnitt:",{"$nulls":3},"in VK:"]
["Regelmäßige wöchentliche Arbeitszeit:",{"$nulls":7},{"$f":"ROUND((F48/12*D48)+(N48/12*L48)+(F51/12*D51)+(N51/12*L51)+(F54/12*D54)+(N54/12*L54),2)","v":0},null,"h/Woche",null,{"$f":"ROUND(I45/40,2)","v":0},{"$nulls":3},"Bsp.:"]
[]
["Datum (von - bis)",null,null," in Monaten",null,"Std./Woche",null,null,"Datum (von - bis)",null,null," in Monaten",null,"Std./Woche",null,null,"Datum (von - bis)",null,null," in Monaten",null,"Std./Woche"]
[{"$nulls":16},"01.01. - 31.03.",null,null,{"v":3,"d":"3.00"},null,"20"]
[]
["Datum (von - bis)",null,null," in Monaten",null,"Std./Woche",null,null,"Datum (von - bis)",null,null," in Monaten",null,"Std./Woche",null,null,"Datum (von - bis)",null,null," in Monaten",null,"Std./Woche"]
[{"$nulls":16},"01.04. - 15.10.",null,null,{"v":6.5,"d":"6.50"},null,"40"]
[]
["Datum (von - bis)",null,null," in Monaten",null,"Std./Woche",null,null,"Datum (von - bis)",null,null," in Monaten",null,"Std./Woche"]
[]
[]
["Lohnnebenkosten etc.",{"$nulls":3},"geringfügig beschäftigt (Minijob)"]
[]
["AG-Anteile SV in %",{"$nulls":3},"Umlage-Verfahren der Krankenkassen in %",null,null,"S","AG-Anteile ges. in EUR",null,null,"VWL in EUR",null,"bAV/Jahr                 in EUR"]
["PV","RV","AV","KV","U1","U2","IU",{"$nulls":4},"im Monat","im Jahr"]
[{"$nulls":7},{"$f":"SUM(A60:G60)","v":0}]
[]
["PV: Pflegeversicherung                                ",{"$nulls":3},"U1: Lohnfortzahl.verfahren der Krankenkassen im Krankheitsfall",{"$nulls":4},"VWL: Vermögens- wirksame Leistungen für 1,0 VK > max. 6,65 € pro Monat",null,null,"bAV: die Arbeitgeberaufwendungen für eine betriebl. Altersvorsorge sind max. in Höhe der städtischen Altersvorsorge (ZVK) zuwendungsfähig. "]
["RV: Rentenversicherung"]
["AV: Arbeitslosenversicherung                        ",{"$nulls":3},"U2: Lohnfortzahlungsverfahren der Krankenkassen bei Mutterschaft"]
["KV: Krankenversicherung"]
[{"$nulls":4},"IU: Insolvenzgeldumlage an die KK (ausgenommen Körperschaften des öff. Rechts)"]

{"sheet":"Angaben zur Fachkraft (6)","index":8,"n_rows":66,"n_cols":22,"rows_kept":66,"merged":[[0,13,0,15],[6,0,6,4],[6,6,6,8],[6,10,6,14],[9,5,9,6],[9,7,9,9],[10,7,11,14],[13,0,14,8],[16,0,17,8],[19,0,20,8],[22,0,22,14],[25,2,25,3],[25,6,25,8],[25,9,25,14],[28,8,29,13],[31,1,31,14],[32,0,32,10],[32,13,34,14],[33,12,34,12],[36,0,37,2],[36,3,36,4],[36,5,36,6],[36,7,36,8],[36,9,36,10],[36,11,36,12],[36,13,36,14],[41,0,41,2],[41,3,41,5],[41,11,41,13],[44,8,44,9],[47,0,47,2],[47,3,47,4],[47,5,47,6],[47,8,47,10],[47,11,47,12],[47,13,47,14],[47,16,47,18],[47,19,47,20],[47,21,47,22],[50,0,50,2],[50,3,50,4],[50,5,50,6],[50,8,50,10],[50,11,50,12],[50,13,50,14],[50,16,50,18],[50,19,50,20],[50,21,50,22],[53,0,53,2],[53,3,53,4],[53,5,53,6],[53,8,53,10],[53,11,53,12],[53,13,53,14],[55,4,56,7],[57,0,57,3],[57,4,57,6],[57,7,58,7],[57,8,58,9],[57,11,57,12],[57,13,58,14],[59,8,59,9],[59,13,59,14],[61,0,61,3],[61,4,62,8],[61,9,66,11],[61,12,66,14],[63,0,63,3],[63,4,64,8],[64,0,64,3],[65,4,66,8]]}
["Landeshauptstadt Dresden - Jugendamt",{"$nulls":7},"Fördermittelantrag",{"$f":"Deckblatt!J21","v":0},null,null,"Az:",{"$f":"Deckblatt!N3","v":0}]
[]
[{"$nulls":7},"Angaben zur beantragten Fachkraft",{"$nulls":7},"Blatt 6"]
["Zutreffendes ankreuzen!"]
[]
["Name, Vorname",{"$nulls":5},"Geburtsdatum",{"$nulls":3},"Stellen-/ Tätigkeitsbezeichnung"]
[]
[]
["Stellenbeschreibung",{"$nulls":3},"dem Antrag beigefügt"]
[null,"liegt dem Jugendamt vor, dann",{"$nulls":3},"Stellenbeschrei- bung vom:",{"$nulls":4},"behält ihre Gültigkeit:"]
[{"$nulls":7},"Ist die im Jugendamt vorliegende Stellenbeschreibung nicht mehr gültig, muss eine neue eingereicht werden."]
["Ausbildung"]
["Abschluss:"]
[{"$nulls":9},"Kopie des Abschlusses"]
[{"$nulls":10},"beigefügt",null,"liegt dem Jugendamt vor"]
["berufsbegleitende Ausbildung:"]
[{"$nulls":9},"Immatrikulationsbescheinigung"]
[{"$nulls":10},"beigefügt",null,"liegt dem Jugendamt vor"]
["Zusatzqualifikationen:"]
[{"$nulls":9},"Kopie(n)"]
[{"$nulls":10},"beigefügt",null,"liegt dem Jugendamt vor"]
[]
["Die kopierten Qualifikationsnachweise sind (sofern im Jugendamt noch nicht vorliegend) vom Arbeitgeber mit dem Vermerk \"Das Original hat am ... (Datum) vorgelegen\"  zu versehen. "]
["Vergütung"]
[null,"in Anlehnung an den Tarif öffentlicher Dienst (TVöD bzw. TVÜ-VKA)",{"$nulls":8},"anderer Tarifvertrag (Bezeichnung)"]
["Entgeltgruppe:",{"$nulls":5},"übergeleitete(r)  Beschäftigte(r)"]
[]
["Sozialdaten (nur für \"übergeleitete Beschäftigte\")"]
["Familienstand:",null,null,"ledig","            verheiratet",null," verwitwet",null,"Ehepartner im öffentlichen Dienst  bzw. nach dem Überleitungstarifvertrag des TVöD vergütet:"]
["Stichtag 30.09.2005",null,null,"geschieden"]
[]
["Kinder: ","(Angaben sind für alle übergeleitete Beschäftigte zu leisten; es sind nur die Kinder zu berücksichtigen, die bis zum 31.12.2005 geboren wurden)"]
["1. Anzahl der Kinder, für welche der/die Beschäftigte im Antragszeitraum Kindergeld erhält:"]
["                       "]
[]
[]
["Geb.daten der zu berücksichtigenden Kinder:"]
[{"$nulls":3},"1. Kind",null,"2. Kind",null,"3. Kind",null,"4. Kind",null,"5. Kind",null,"6. Kind"]
[]
["Beschäftigungszeit"]
[]
["in der o. g. Tätigkeit beschäftigt seit: ",{"$nulls":5},"Aufnahme der Tätigkeit im Angebot am:"]
[]
["Arbeitsumfang ",{"$nulls":7},"Jahresdurchschnitt:",{"$nulls":3},"in VK:"]
["Regelmäßige wöchentliche Arbeitszeit:",{"$nulls":7},{"$f":"ROUND((F48/12*D48)+(N48/12*L48)+(F51/12*D51)+(N51/12*L51)+(F54/12*D54)+(N54/12*L54),2)","v":0},null,"h/Woche",null,{"$f":"ROUND(I45/40,2)","v":0},{"$nulls":3},"Bsp.:"]
[]
["Datum (von - bis)",null,null," in Monaten",null,"Std./Woche",null,null,"Datum (von - bis)",null,null," in Monaten",null,"Std./Woche",null,null,"Datum (von - bis)",null,null," in Monaten",null,"Std./Woche"]
[{"$nulls":16},"01.01. - 31.03.",null,null,{"v":3,"d":"3.00"},null,"20"]
[]
["Datum (von - bis)",null,null," in Monaten",null,"Std./Woche",null,null,"Datum (von - bis)",null,null," in Monaten",null,"Std./Woche",null,null,"Datum (von - bis)",null,null," in Monaten",null,"Std./Woche"]
[{"$nulls":16},"01.04. - 15.10.",null,null,{"v":6.5,"d":"6.50"},null,"40"]
[]
["Datum (von - bis)",null,null," in Monaten",null,"Std./Woche",null,null,"Datum (von - bis)",null,null," in Monaten",null,"Std./Woche"]
[]
[]
["Lohnnebenkosten etc.",{"$nulls":3},"geringfügig beschäftigt (Minijob)"]
[]
["AG-Anteile SV in %",{"$nulls":3},"Umlage-Verfahren der Krankenkassen in %",null,null,"S","AG-Anteile ges. in EUR",null,null,"VWL in EUR",null,"bAV/Jahr                 in EUR"]
["PV","RV","AV","KV","U1","U2","IU",{"$nulls":4},"im Monat","im Jahr"]
[{"$nulls":7},{"$f":"SUM(A60:G60)","v":0}]
[]
["PV: Pflegeversicherung                                ",{"$nulls":3},"U1: Lohnfortzahl.verfahren der Krankenkassen im Krankheitsfall",{"$nulls":4},"VWL: Vermögens- wirksame Leistungen für 1,0 VK > max. 6,65 € pro Monat",null,null,"bAV: die Arbeitgeberaufwendungen für eine betriebl. Altersvorsorge sind max. in Höhe der städtischen Altersvorsorge (ZVK) zuwendungsfähig. "]
["RV: Rentenversicherung"]
["AV: Arbeitslosenversicherung                        ",{"$nulls":3},"U2: Lohnfortzahlungsverfahren der Krankenkassen bei Mutterschaft"]
["KV: Krankenversicherung"]
[{"$nulls":4},"IU: Insolvenzgeldumlage an die KK (ausgenommen Körperschaften des öff. Rechts)"]

{"sheet":"Personalausgaben","index":9,"n_rows":18,"n_cols":13,"rows_kept":18,"merged":[[4,1,4,3],[4,4,4,6],[4,7,4,8],[4,9,4,10],[5,1,5,3],[5,4,5,6],[5,7,5,8],[5,9,5,10],[6,1,6,3],[6,4,6,6],[6,7,6,8],[6,9,6,10],[7,1,7,3],[7,4,7,6],[7,7,7,8],[7,9,7,10],[8,1,8,3],[8,4,8,6],[8,7,8,8],[8,9,8,10],[9,1,9,3],[9,4,9,6],[9,7,9,8],[9,9,9,10],[10,1,10,3],[10,4,10,6],[10,7,10,8],[10,9,10,10],[11,1,11,8],[11,9,11,10],[12,0,12,2],[12,3,12,4],[12,6,12,7],[12,9,12,10],[17,0,18,11]]}
["Landeshauptstadt Dresden - Jugendamt",{"$nulls":5},"Fördermittelantrag",{"$f":"Deckblatt!J21","v":0},null,null,"Az:",{"$f":"Deckblatt!N3","v":0}]
[]
[{"$nulls":6},"Personalausgaben"]
[]
["Blatt","Name, Vorname",null,null,"Stellenbezeichnung",null,null,"AZ* in h/Woche",null,"Ausgaben                   in EUR",null,"Bearbeitungsvermerk Jugendamt"]
[1,{"$f":"'Angaben zur Fachkraft (1)'!$A$7","v":0},null,null,{"$f":"'Angaben zur Fachkraft (1)'!$K$7","v":0},null,null,{"$f":"'Angaben zur Fachkraft (1)'!$I$45","v":0}]
[2,{"$f":"'Angaben zur Fachkraft (2)'!$A$7","v":0},null,null,{"$f":"'Angaben zur Fachkraft (2)'!$K$7","v":0},null,null,{"$f":"'Angaben zur Fachkraft (2)'!$I$45","v":0}]
[3,{"$f":"'Angaben zur Fachkraft (3)'!$A$7","v":0},null,null,{"$f":"'Angaben zur Fachkraft (3)'!$K$7","v":0},null,null,{"$f":"'Angaben zur Fachkraft (3)'!$I$45","v":0}]
[4,{"$f":"'Angaben zur Fachkraft (4)'!$A$7","v":0},null,null,{"$f":"'Angaben zur Fachkraft (4)'!$K$7","v":0},null,null,{"$f":"'Angaben zur Fachkraft (4)'!$I$45","v":0}]
[5,{"$f":"'Angaben zur Fachkraft (5)'!$A$7","v":0},null,null,{"$f":"'Angaben zur Fachkraft (5)'!$K$7","v":0},null,null,{"$f":"'Angaben zur Fachkraft (5)'!$I$45","v":0}]
[6,{"$f":"'Angaben zur Fachkraft (6)'!$A$7","v":0},null,null,{"$f":"'Angaben zur Fachkraft (6)'!$K$7","v":0},null,null,{"$f":"'Angaben zur Fachkraft (6)'!$I$45","v":0}]
[null,"Berufsgenossenschaft                                                                                                                       "]
["gesamt",null,null,{"$f":"G13/40","v":0},null,"VK",{"$f":"SUM(H6:I11)","v":0},null,"h",{"$f":"SUM(J6:K12)","v":0}]
[]
["* regelmäßige wöchentliche Arbeitszeit als Jahresmittel"]
[]
["Platz für Bemerkungen"]
[{"$nulls":12},"Absatz einfügen: Alt und Enter gleichzeitig klicken"]

{"sheet":"Ausgaben-u.Finanzierungsplan","index":10,"n_rows":23,"n_cols":17,"rows_kept":23,"merged":[[0,13,0,15],[2,0,2,15],[4,0,5,3],[4,4,4,7],[4,8,4,11],[4,12,4,15],[5,4,5,7],[5,8,5,11],[5,12,5,15],[5,17,5,20],[7,0,7,3],[7,4,7,7],[7,8,7,11],[7,12,7,15],[8,0,8,3],[8,4,8,7],[8,8,8,11],[8,12,8,15],[9,0,9,3],[9,4,9,7],[9,8,9,11],[9,12,9,15],[10,0,10,3],[10,4,10,7],[10,8,10,11],[10,12,10,15],[11,0,11,3],[11,4,11,7],[11,8,11,11],[11,12,11,15],[12,0,12,3],[12,4,12,7],[12,8,12,11],[12,12,12,15],[13,16,14,20],[14,0,15,3],[14,4,14,7],[14,8,14,11],[14,12,14,15],[15,4,15,7],[15,8,15,11],[15,12,15,15],[17,0,18,3],[17,4,17,7],[17,8,17,11],[17,12,17,15],[18,4,18,7],[18,8,18,11],[18,12,18,15],[19,0,19,15],[20,0,21,15],[23,0,24,15]]}
["Landeshauptstadt Dresden - Jugendamt",{"$nulls":8},"Fördermittelantrag",{"$f":"Deckblatt!J21","v":0},null,"Az:",{"$f":"Deckblatt!N3","v":0}]
[]
["Ausgaben- und Finanzierungsplan"]
[]
["Ausgaben",{"$nulls":3},"Personalausgaben",{"$nulls":3},"Sachausgaben",{"$nulls":3},"Gesamtausgaben"]
[{"$nulls":4},{"$f":"Personalausgaben!J13","v":0},{"$nulls":3},{"$f":"Sachausgaben!N36","v":0},{"$nulls":3},{"$f":"SUM(E6:L6)","v":0}]
[]
["Finanzierung",{"$nulls":3},"Personalausgaben",{"$nulls":3},"Sachausgaben",{"$nulls":3},"gesamt"]
["Fördermittelantrag Jugendamt Dresden",{"$nulls":11},{"$f":"SUM(E9:L9)","v":0}]
["weitere öffentliche Mittel*",{"$nulls":11},{"$f":"SUM(E10:L10)","v":0}]
["sonstige Finanzierungsquellen",{"$nulls":11},{"$f":"SUM(E11:L11)","v":0}]
["Eigenmittel",{"$nulls":11},{"$f":"SUM(E12:L12)","v":0}]
["gesamt",{"$nulls":3},{"$f":"SUM(E9:G12)","v":0},{"$nulls":3},{"$f":"SUM(I9:K12)","v":0},{"$nulls":3},{"$f":"SUM(E13:L13)","v":0}]
[{"$nulls":7},{"$f":"IF(E6<>E13,\"Fehler: Ausgaben ungleich Finanzierung\",\"\")","v":""},{"$f":"IF(I6<>I13,\"Fehler: Ausgaben ungleich Finanzierung\",\"\")","v":""},{"$nulls":7},"Beachten Sie bitte erst etwaige Fehlermeldung, wenn Sie vermeintlich fertig sind mit dem Ausfüllen."]
["Eigenleistungen",{"$nulls":3},"Anzahl der Stunden",{"$nulls":3},{"v":8.5,"d":"8.50 €"},{"$nulls":3},"in EUR"]
[{"$nulls":8},"je Stunde",{"$nulls":3},{"$f":"E16*I15","v":0}]
[]
["Eigenanteil an den Gesamtausgaben",{"$nulls":3},"Eigenmittel in %",{"$nulls":3},"Eigenleistungen in %",{"$nulls":3}," = Eigenanteil in %"]
[{"$nulls":4},{"$f":"ROUND(M12*100/M6,1)","v":{"$error":"#DIV/0!"}},{"$nulls":3},{"$f":"ROUND(M16*100/(M6+M16),1)","v":{"$error":"#DIV/0!"}},{"$nulls":3},{"$f":"ROUND((M16+M12)*100/(M6+M16),1)","v":{"$error":"#DIV/0!"}}]
["* sofern neben der Zuwendung weitere öffentliche Mittel  in die Finanzierung dieses Projektes einfließen, sind die im Folgefeld darstellen: für wen/was und in welcher Höhe (z. B. vom Landesjugendamt, KSV, SMS, SMK, Bund, ARGE, EU, LHD)"]
[]
[]
["Platz für Bemerkungen"]